bitfinex/quotes_BTCUSD_20241203
["timestamp","ask_amount","ask_price","bid_price","bid_amount"]
[1733244165243,0.001,95420.0,95417.0,0.1265]
[1733244165667,0.00010479,95423.0,95417.0,0.1265]
[1733244165883,0.001,95420.0,95417.0,0.1275]
[1733244166396,0.00010479,95423.0,95417.0,0.54571]
[1733244166612,0.00010479,95423.0,95417.0,0.336105]
[1733244166847,0.00010479,95423.0,95417.0,0.1265]
[1733244167490,0.00010479,95423.0,95417.0,0.1275]
[1733244167729,0.209597,95421.0,95417.0,0.1275]
[1733244167963,0.209597,95421.0,95417.0,0.1265]
[1733244168178,0.419196,95421.0,95417.0,0.1265]
[1733244168429,0.419196,95421.0,95416.0,0.0008633]
[1733244168644,0.209606,95417.0,95416.0,0.0008633]
[1733244171564,0.209606,95417.0,95416.0,0.0028633]
[1733244171776,0.209606,95417.0,95416.0,0.0008633]
[1733244172208,0.210606,95417.0,95416.0,0.0008633]
[1733244172675,0.419353,95385.0,95382.0,0.0200927]
[1733244172876,0.419353,95385.0,95334.0,0.31539568]
[1733244172877,0.209797,95330.0,95327.0,0.31539568]
[1733244173100,0.209797,95330.0,95323.0,0.0008628]
[1733244173311,0.209797,95330.0,95301.0,0.0651]
[1733244173312,0.419679,95311.0,95306.0,0.00321725]
[1733244173518,1.10349058,95310.0,95301.0,0.04286816]
[1733244173735,0.27904462,95306.0,95301.0,0.04286816]
[1733244173980,0.209855,95304.0,95301.0,0.03786816]
[1733244174208,0.34376094,95305.0,95301.0,0.02019901]
[1733244174209,0.27904462,95305.0,95301.0,0.02019901]
[1733244174425,1.03328423,95304.0,95301.0,0.02019901]
[1733244174636,0.209859,95302.0,95301.0,0.02019901]
[1733244174840,1.03328823,95302.0,95301.0,0.01912918]
[1733244175048,0.82342923,95302.0,95301.0,0.01912918]
[1733244175281,0.34331759,95302.0,95301.0,0.00807677]
[1733244175502,0.34331759,95302.0,95297.0,0.07167819]
[1733244175503,0.82334702,95302.0,95297.0,0.07167819]
[1733244175721,0.82334702,95301.0,95297.0,0.07227056]
[1733244175921,0.31580504,95306.0,95297.0,0.07227056]
[1733244175922,0.62172832,95300.0,95297.0,0.07227056]
[1733244176130,0.34256756,95299.0,95297.0,0.07227056]
[1733244176334,0.09280169,95300.0,95297.0,0.07227056]
[1733244176601,0.005,95302.0,95297.0,0.07227056]
[1733244176602,0.09280169,95299.0,95297.0,0.07227056]
[1733244177248,0.005,95302.0,95297.0,0.06324148]
[1733244177464,0.09280169,95303.0,95297.0,0.06324148]
[1733244177700,0.09280169,95303.0,95297.0,0.05504527]
[1733244178166,0.005,95301.0,95292.0,0.00185716]
[1733244178170,0.005,95301.0,95293.0,0.209879]
[1733244178403,0.0028505,95297.0,95291.0,0.1815391]
[1733244178612,0.0028505,95297.0,95295.0,0.209872]
[1733244178823,0.0028505,95297.0,95296.0,0.00185713]
[1733244179276,0.0055083,95297.0,95296.0,0.10471259]
[1733244179492,0.0055083,95297.0,95296.0,0.30564073]
[1733244179701,0.0055083,95297.0,95296.0,0.30471259]
[1733244179914,0.0095083,95297.0,95296.0,0.30471259]
[1733244180139,0.0055083,95297.0,95293.0,0.2]
[1733244180355,0.0095083,95297.0,95288.0,0.20989]
[1733244180584,0.0095083,95297.0,95292.0,0.2107422]
[1733244180837,0.0095083,95297.0,95294.0,0.209876]
[1733244181063,0.00058801,95303.0,95301.0,0.2]
[1733244181301,0.00058801,95303.0,95302.0,0.51549931]
[1733244181515,0.00058801,95303.0,95302.0,0.51457159]
[1733244182406,0.00058801,95303.0,95302.0,0.31457159]
[1733244182616,0.00058801,95303.0,95302.0,0.31557159]
[1733244183065,0.00058801,95303.0,95302.0,0.71557159]
[1733244183277,0.00158801,95303.0,95302.0,0.71657159]
[1733244184165,0.01246925,95303.0,95302.0,0.71657159]
[1733244185849,0.01088124,95303.0,95302.0,0.71657159]
[1733244186064,0.0009817,95332.0,95331.0,0.209795]
[1733244186288,0.209739,95357.0,95342.0,0.20977]
[1733244186537,0.0009861,95355.0,95342.0,0.20977]
[1733244186753,0.0009861,95355.0,95331.0,0.10471259]
[1733244186754,0.209755,95349.0,95331.0,0.10471259]
[1733244187016,0.209763,95346.0,95333.0,0.20979]
[1733244187231,0.209755,95350.0,95333.0,0.20979]
[1733244187445,0.209755,95350.0,95330.0,0.209796]
[1733244187446,0.005,95332.0,95331.0,0.001]
[1733244189028,0.002,95332.0,95330.0,0.00017694]
[1733244189253,0.002,95332.0,95331.0,0.001]
[1733244189503,0.002,95332.0,95330.0,0.00017694]
[1733244189978,0.003,95332.0,95331.0,0.209795]
[1733244190192,0.003,95332.0,95331.0,0.21072163]
[1733244190406,0.003,95332.0,95330.0,0.00017694]
[1733244190407,0.003,95332.0,95330.0,0.00110356]
[1733244191340,0.001,95332.0,95330.0,0.00017694]
[1733244191540,0.209767,95344.0,95330.0,0.00110363]
[1733244191748,0.419534,95344.0,95329.0,0.18541636]
[1733244191985,0.005,95347.0,95333.0,0.20979]
[1733244192346,0.209769,95343.0,95330.0,0.209797]
[1733244192444,0.0009924,95351.0,95329.0,0.00017705]
[1733244192445,0.209771,95342.0,95329.0,0.00017705]
[1733244192650,0.0009853,95355.0,95331.0,0.10471259]
[1733244193133,0.209781,95338.0,95331.0,0.10471259]
[1733244193341,0.209775,95340.0,95331.0,0.10471259]
[1733244194639,0.213775,95340.0,95331.0,0.10471259]
[1733244195697,0.209784,95337.0,95331.0,0.10471259]
[1733244196146,0.216775,95340.0,95331.0,0.10471259]
[1733244196368,0.209777,95339.0,95331.0,0.10471259]
[1733244196589,0.209789,95334.0,95329.0,0.00017705]
[1733244196797,0.209788,95334.0,95329.0,0.00017705]
[1733244197721,0.209784,95336.0,95329.0,0.00017705]
[1733244198180,0.002,95334.0,95329.0,0.00017705]
[1733244198414,0.002,95334.0,95330.0,0.10471259]
[1733244198650,0.209757,95349.0,95330.0,0.10471259]
[1733244198651,0.209757,95348.0,95330.0,0.10471259]
[1733244199088,0.003,95336.0,95335.0,0.209784]
[1733244199565,0.003,95336.0,95335.0,0.50468659]
[1733244199819,0.0009999,95350.0,95349.0,0.472645]
[1733244200054,0.209643,95400.0,95352.0,0.06289]
[1733244200296,0.209643,95400.0,95351.0,0.2]
[1733244200297,0.35866229,95399.0,95369.0,0.209709]
[1733244200528,0.31667929,95399.0,95371.0,0.209706]
[1733244200744,0.10703229,95399.0,95370.0,0.10471259]
[1733244201177,0.10703229,95399.0,95371.0,0.209707]
[1733244201612,0.209676,95385.0,95371.0,0.209707]
[1733244202040,0.209676,95385.0,95372.0,0.31441659]
[1733244202506,0.20967,95388.0,95372.0,0.31441659]
[1733244202507,0.20967,95388.0,95375.0,0.209696]
[1733244202974,0.209665,95391.0,95379.0,0.209688]
[1733244203216,0.209665,95391.0,95346.0,0.209761]
[1733244203217,0.009,95385.0,95376.0,0.10471259]
[1733244203430,0.209665,95391.0,95380.0,0.209687]
[1733244203668,0.009,95388.0,95376.0,0.31440859]
[1733244203890,0.006,95385.0,95381.0,0.419369]
[1733244204162,0.006,95385.0,95382.0,0.10471259]
[1733244204387,0.009,95388.0,95387.0,0.272562]
[1733244204601,0.009,95388.0,95387.0,0.37727459]
[1733244204817,0.009,95388.0,95387.0,0.57727459]
[1733244205059,0.006,95391.0,95390.0,0.26289]
[1733244205288,0.009,95391.0,95390.0,0.36760259]
[1733244205524,0.00058885,95399.0,95391.0,0.482216]
[1733244205726,0.00058885,95399.0,95392.0,0.10471259]
[1733244205930,0.00058885,95399.0,95398.0,0.209648]
[1733244206141,0.00058885,95399.0,95398.0,0.31436059]
[1733244207767,0.00058885,95399.0,95398.0,0.31536059]
[1733244207987,0.00058885,95399.0,95398.0,0.10571259]
[1733244208213,0.00058885,95399.0,95398.0,0.001]
[1733244208428,0.00158885,95399.0,95398.0,0.001]
[1733244209106,0.00058885,95399.0,95398.0,0.001]
[1733244209351,0.00058885,95399.0,95382.0,0.3244]
[1733244209584,0.00058885,95399.0,95390.0,0.209663]
[1733244209585,0.00158885,95399.0,95390.0,0.209663]
[1733244209831,0.00158885,95399.0,95391.0,0.10471259]
[1733244210511,0.00158885,95399.0,95396.0,0.419301]
[1733244210740,0.00458885,95399.0,95398.0,0.209648]
[1733244210965,0.00458885,95399.0,95398.0,0.31436059]
[1733244211194,0.00058885,95399.0,95398.0,0.31436059]
[1733244211432,0.00158885,95399.0,95398.0,0.31436059]
[1733244211658,0.00358885,95399.0,95398.0,0.31436059]
[1733244211866,0.00258885,95399.0,95398.0,0.31436059]
[1733244212084,0.00058885,95399.0,95398.0,0.31436059]
[1733244212303,0.00258885,95399.0,95398.0,0.31436059]
[1733244213644,0.00058885,95399.0,95398.0,0.31436059]
[1733244214058,0.00158885,95399.0,95398.0,0.31436059]
[1733244217395,0.00331345,95399.0,95398.0,0.31436059]
[1733244217633,0.00331345,95399.0,95398.0,0.37725059]
[1733244218607,0.209591,95424.0,95398.0,0.37725059]
[1733244218608,0.0339208,95437.0,95399.0,0.1289]
[1733244218826,0.209506,95463.0,95433.0,0.06289]
[1733244219074,0.00017661,95437.0,95415.0,0.2796]
[1733244219278,0.00017661,95437.0,95424.0,0.20959]
[1733244219485,0.00017661,95437.0,95425.0,0.10471259]
[1733244219709,0.209564,95436.0,95415.0,0.0796]
[1733244219947,0.209564,95436.0,95416.0,0.209608]
[1733244220167,0.209564,95436.0,95417.0,0.209606]
[1733244220383,0.209573,95432.0,95417.0,0.209606]
[1733244220802,0.209582,95428.0,95415.0,0.10471259]
[1733244221223,0.209573,95432.0,95415.0,0.10471259]
[1733244221439,0.209568,95434.0,95405.0,0.209632]
[1733244221649,0.209591,95424.0,95406.0,0.10471259]
[1733244221932,0.00231856,95423.0,95400.0,0.472]
[1733244222161,0.209625,95409.0,95385.0,0.02754319]
[1733244222390,0.209617,95412.0,95386.0,0.10471259]
[1733244222607,0.209633,95405.0,95387.0,0.209672]
[1733244222821,0.00231901,95409.0,95387.0,0.10471259]
[1733244223059,0.209661,95392.0,95379.0,0.472]
[1733244223297,0.00231939,95395.0,95372.0,0.0008623]
[1733244223507,0.209672,95387.0,95373.0,0.10471259]
[1733244223714,0.209672,95387.0,95372.0,0.7008623]
[1733244223715,0.209699,95375.0,95372.0,0.0008623]
[1733244224170,0.209691,95379.0,95372.0,0.00145115]
[1733244224171,0.00231982,95378.0,95372.0,0.00145115]
[1733244224586,0.359655,95395.0,95372.0,0.00145115]
[1733244224809,0.209672,95387.0,95372.0,0.00145115]
[1733244225010,0.002,95375.0,95372.0,0.00145115]
[1733244225226,0.002,95375.0,95373.0,0.209702]
[1733244225840,0.002,95375.0,95372.0,0.00145115]
[1733244226938,0.00231988,95374.0,95372.0,0.00145115]
[1733244227141,0.209702,95373.0,95372.0,0.00145115]
[1733244227355,0.46673468,95373.0,95372.0,0.00145115]
[1733244227573,0.46441459,95373.0,95372.0,0.00245115]
[1733244227809,0.46441459,95373.0,95372.0,0.00072033]
[1733244228260,0.46441459,95373.0,95333.0,0.20979]
[1733244228261,0.20975,95352.0,95334.0,0.209788]
[1733244228488,0.209752,95351.0,95336.0,0.209784]
[1733244228747,0.209781,95338.0,95333.0,0.00017705]
[1733244228977,0.209784,95336.0,95333.0,0.00017705]
[1733244229197,0.419568,95336.0,95333.0,0.00017705]
[1733244229436,0.209784,95336.0,95333.0,0.00017705]
[1733244230199,0.419568,95336.0,95333.0,0.00017705]
[1733244230646,0.209788,95334.0,95333.0,0.00017705]
[1733244231956,0.212788,95334.0,95333.0,0.00017705]
[1733244232164,0.209788,95334.0,95333.0,0.00017705]
[1733244232373,0.212788,95334.0,95333.0,0.00017705]
[1733244233890,0.215788,95334.0,95333.0,0.00017705]
[1733244237036,0.006,95334.0,95333.0,0.00017705]
[1733244239685,0.20976,95347.0,95333.0,0.00017705]
[1733244240131,0.004,95334.0,95333.0,0.00017705]
[1733244240564,0.001,95334.0,95333.0,0.00017705]
[1733244240792,0.003,95347.0,95334.0,0.209788]
[1733244241015,0.003,95347.0,95333.0,0.00017705]
[1733244241229,0.006,95347.0,95333.0,0.00017705]
[1733244241461,0.209751,95351.0,95333.0,0.00017705]
[1733244241716,0.001,95334.0,95333.0,0.00117705]
[1733244241919,0.001,95334.0,95333.0,0.10588964]
[1733244242129,0.001,95334.0,95333.0,0.10675194]
[1733244242392,0.001,95334.0,95333.0,0.08492677]
[1733244243023,0.209742,95356.0,95338.0,0.209778]
[1733244243260,0.006,95347.0,95338.0,0.209778]
[1733244243497,0.003,95347.0,95338.0,0.209778]
[1733244243726,0.209742,95355.0,95338.0,0.209778]
[1733244244163,0.209751,95351.0,95334.0,0.209788]
[1733244244386,0.001,95347.0,95335.0,0.10471259]
[1733244244602,0.209744,95354.0,95335.0,0.10471259]
[1733244244857,0.209744,95354.0,95336.0,0.209784]
[1733244245085,0.213743,95355.0,95336.0,0.209784]
[1733244245086,0.209755,95350.0,95336.0,0.10471259]
[1733244245299,0.209748,95353.0,95337.0,0.209782]
[1733244246024,0.009,95355.0,95341.0,0.209771]
[1733244246233,0.009,95355.0,95342.0,0.10471259]
[1733244246234,0.004,95355.0,95342.0,0.10471259]
[1733244246441,0.006,95347.0,95343.0,0.209767]
[1733244246653,0.006,95347.0,95344.0,0.209766]
[1733244246877,0.011,95347.0,95344.0,0.209766]
[1733244247096,0.011,95347.0,95343.0,0.10471259]
[1733244247307,0.006,95347.0,95333.0,0.0008623]
[1733244247518,0.2,95384.0,95333.0,0.0008623]
[1733244247519,0.2,95372.0,95333.0,0.0008623]
[1733244247777,0.209785,95336.0,95333.0,0.0008623]
[1733244248197,0.209777,95339.0,95333.0,0.0008623]
[1733244248406,0.00232066,95343.0,95333.0,0.0008623]
[1733244249528,0.209771,95342.0,95333.0,0.0008623]
[1733244249739,0.00232066,95346.0,95333.0,0.0008623]
[1733244249964,0.002,95347.0,95333.0,0.0008623]
[1733244249965,0.001,95343.0,95333.0,0.2106523]
[1733244250175,0.001,95343.0,95333.0,0.0008623]
[1733244250590,0.001,95339.0,95333.0,0.0008623]
[1733244251055,0.001,95343.0,95335.0,0.209786]
[1733244251507,0.003,95343.0,95335.0,0.209786]
[1733244251715,0.003,95343.0,95333.0,0.0008623]
[1733244251983,0.003,95343.0,95334.0,0.10471259]
[1733244252254,0.003,95343.0,95342.0,0.209771]
[1733244252464,0.06002191,95362.0,95342.0,0.10471259]
[1733244252682,0.209738,95358.0,95343.0,0.37737059]
[1733244253121,0.209729,95361.0,95343.0,0.37737059]
[1733244253327,0.06002191,95362.0,95343.0,0.16760259]
[1733244253554,0.209729,95361.0,95347.0,0.06289]
[1733244253979,0.008,95358.0,95353.0,0.06289]
[1733244254218,0.008,95358.0,95353.0,0.06277455]
[1733244254433,0.004,95358.0,95353.0,0.06277455]
[1733244254654,0.209738,95357.0,95353.0,0.06277455]
[1733244254858,0.0057254,95358.0,95353.0,0.06277455]
[1733244255106,0.0057254,95358.0,95343.0,0.0626591]
[1733244255107,0.00232023,95357.0,95343.0,0.0626591]
[1733244255316,0.209762,95346.0,95343.0,0.0626591]
[1733244255530,0.00232051,95355.0,95343.0,0.0626591]
[1733244255971,0.209761,95347.0,95334.0,0.0626591]
[1733244256189,0.10643799,95358.0,95335.0,0.209786]
[1733244256190,0.00232047,95349.0,95335.0,0.209786]
[1733244256413,0.20974,95356.0,95337.0,0.209782]
[1733244256623,0.21206036,95356.0,95340.0,0.0626591]
[1733244256844,0.00432036,95355.0,95340.0,0.0626591]
[1733244257068,0.209744,95354.0,95340.0,0.0626591]
[1733244257749,0.00232036,95353.0,95340.0,0.0626591]
[1733244257950,0.209742,95355.0,95340.0,0.0626591]
[1733244258158,0.00232048,95354.0,95340.0,0.0626591]
[1733244258836,0.209764,95346.0,95340.0,0.0626591]
[1733244259102,0.21208448,95345.0,95333.0,0.0008623]
[1733244259314,0.00232048,95345.0,95333.0,0.0008623]
[1733244259556,0.209782,95337.0,95333.0,0.0008623]
[1733244259777,0.209786,95335.0,95333.0,0.0008623]
[1733244260943,0.00232083,95334.0,95333.0,0.0008623]
[1733244262400,0.00532083,95334.0,95333.0,0.0008623]
[1733244262596,0.00232083,95334.0,95333.0,0.0008623]
[1733244262863,0.00432083,95334.0,95333.0,0.0008623]
[1733244263111,0.209775,95340.0,95333.0,0.0008623]
[1733244263112,0.15,95339.0,95333.0,0.0008623]
[1733244263583,0.005,95334.0,95333.0,0.0008623]
[1733244264007,0.214788,95334.0,95333.0,0.0008623]
[1733244264282,0.211788,95334.0,95333.0,0.0008623]
[1733244264711,0.00232083,95337.0,95333.0,0.0008623]
[1733244264905,0.21210283,95337.0,95333.0,0.0008623]
[1733244265167,0.42188583,95337.0,95333.0,0.0008623]
[1733244265599,0.21210283,95337.0,95333.0,0.0008623]
[1733244265816,0.002,95334.0,95333.0,0.0008623]
[1733244266043,0.00232083,95337.0,95333.0,0.0008623]
[1733244266551,0.007,95337.0,95333.0,0.0008623]
[1733244266784,0.004,95337.0,95333.0,0.0008623]
[1733244267236,0.004,95337.0,95334.0,0.209788]
[1733244267471,0.004,95337.0,95333.0,0.0008623]
[1733244267899,0.209762,95347.0,95333.0,0.0008623]
[1733244268169,0.002,95334.0,95333.0,0.0008623]
[1733244268621,0.002,95334.0,95333.0,0.2106523]
[1733244269064,0.007,95337.0,95333.0,0.0008623]
[1733244269298,0.004,95337.0,95333.0,0.0008623]
[1733244269535,0.209764,95345.0,95333.0,0.0008623]
[1733244269770,0.001,95334.0,95333.0,0.0008623]
[1733244270191,0.209768,95343.0,95333.0,0.0008623]
[1733244270672,0.002,95337.0,95333.0,0.0008623]
[1733244271774,0.00232068,95342.0,95333.0,0.0008623]
[1733244272211,0.001,95334.0,95333.0,0.0008623]
[1733244272646,0.2120938,95341.0,95333.0,0.0008623]
[1733244272869,0.0023208,95341.0,95333.0,0.0008623]
[1733244273098,0.209781,95338.0,95333.0,0.0008623]
[1733244273312,0.0023208,95338.0,95333.0,0.0008623]
[1733244273547,0.209782,95337.0,95333.0,0.0008623]
[1733244273761,0.001,95334.0,95333.0,0.0008623]
[1733244275119,0.0023208,95339.0,95333.0,0.0008623]
[1733244275120,0.209779,95338.0,95333.0,0.0008623]
[1733244275319,0.211779,95338.0,95333.0,0.0008623]
[1733244275527,0.002,95338.0,95333.0,0.0008623]
[1733244275772,0.209779,95338.0,95333.0,0.0008623]
[1733244276177,0.001,95334.0,95333.0,0.0008623]
[1733244276612,0.209784,95336.0,95333.0,0.0008623]
[1733244278533,0.0023208,95337.0,95333.0,0.0008623]
[1733244278960,0.209775,95340.0,95333.0,0.0008623]
[1733244278961,0.0023208,95340.0,95333.0,0.0008623]
[1733244279178,0.001,95336.0,95333.0,0.0008623]
[1733244279385,0.210785,95336.0,95333.0,0.0008623]
[1733244279589,0.209785,95336.0,95333.0,0.0008623]
[1733244281094,0.42189084,95336.0,95333.0,0.0008623]
[1733244281303,0.209788,95334.0,95333.0,0.0008623]
[1733244281451,0.21210899,95334.0,95333.0,0.0008623]
[1733244283494,0.21310899,95334.0,95333.0,0.0008623]
[1733244284343,0.001,95334.0,95333.0,0.0008623]
[1733244284770,0.00332091,95334.0,95333.0,0.0008623]
[1733244288379,0.00232091,95334.0,95333.0,0.0008623]
[1733244288603,0.00532091,95334.0,95333.0,0.0008623]
[1733244288990,0.00832091,95334.0,95333.0,0.0008623]
[1733244289134,0.00532091,95334.0,95333.0,0.0008623]
[1733244289586,0.01132091,95334.0,95333.0,0.0008623]
[1733244290616,0.009,95334.0,95333.0,0.0008623]
[1733244291497,0.009,95334.0,95333.0,0.2735423]
[1733244291713,0.009,95334.0,95333.0,0.37825489]
[1733244292378,0.06002191,95362.0,95337.0,0.2]
[1733244292584,0.06002191,95362.0,95352.0,0.272639]
[1733244292795,0.06002191,95362.0,95338.0,0.473]
[1733244293004,0.06002191,95362.0,95338.0,0.57771259]
[1733244293005,0.209732,95360.0,95338.0,0.57771259]
[1733244293237,0.06002191,95362.0,95339.0,0.10471259]
[1733244293468,0.06002191,95362.0,95352.0,0.209749]
[1733244295213,0.003725,95353.0,95352.0,0.45795159]
[1733244295419,0.004725,95353.0,95352.0,0.18531259]
[1733244295643,0.003725,95353.0,95352.0,0.18531259]
[1733244295878,0.001725,95353.0,95352.0,0.18531259]
[1733244296083,0.002725,95353.0,95352.0,0.18531259]
[1733244298125,0.002725,95353.0,95352.0,0.24820259]
[1733244298793,0.002725,95353.0,95352.0,0.49770259]
[1733244299012,0.002725,95353.0,95352.0,0.29770259]
[1733244299427,0.001725,95353.0,95352.0,0.29770259]
[1733244299717,0.051725,95353.0,95352.0,0.29770259]
[1733244299930,0.052725,95353.0,95352.0,0.29770259]
[1733244301252,0.051725,95353.0,95352.0,0.29770259]
[1733244301686,0.051725,95353.0,95352.0,0.30170259]
[1733244302347,0.052725,95353.0,95352.0,0.30170259]
[1733244302799,0.051725,95353.0,95352.0,0.29770259]
[1733244303022,0.051725,95353.0,95352.0,0.30170259]
[1733244303734,0.051725,95353.0,95352.0,0.50170259]
[1733244304186,0.052725,95353.0,95352.0,0.70170259]
[1733244304399,0.051725,95353.0,95352.0,0.69770259]
[1733244304613,0.052725,95353.0,95352.0,0.72156509]
[1733244304876,0.051725,95353.0,95352.0,0.72456509]
[1733244305310,0.052725,95353.0,95352.0,0.72156509]
[1733244305535,0.041976,95397.0,95390.0,0.14039]
[1733244305763,0.0017246,95399.0,95398.0,0.209648]
[1733244306245,0.0017246,95399.0,95398.0,0.06289]
[1733244306460,0.0017246,95399.0,95386.0,0.473]
[1733244306672,0.0779246,95399.0,95365.0,0.0782]
[1733244306900,0.209661,95392.0,95370.0,0.209708]
[1733244307122,0.20965,95397.0,95374.0,0.209699]
[1733244307329,0.00231946,95396.0,95390.0,0.005]
[1733244307541,0.001,95397.0,95390.0,0.005]
[1733244307770,0.001,95397.0,95391.0,0.272553]
[1733244307979,0.001,95397.0,95392.0,0.209659]
[1733244308188,0.00231356,95399.0,95392.0,0.41932]
[1733244308438,0.00231356,95399.0,95397.0,0.209649]
[1733244308672,0.01131356,95399.0,95393.0,0.209658]
[1733244308875,0.01131356,95399.0,95391.0,0.06289]
[1733244308876,0.00231356,95399.0,95391.0,0.06289]
[1733244309084,0.002,95397.0,95396.0,0.209651]
[1733244309293,0.002,95397.0,95396.0,0.0003987]
[1733244310207,0.002,95397.0,95396.0,0.16800129]
[1733244310650,0.00231356,95399.0,95398.0,0.06289]
[1733244310867,0.00431356,95399.0,95398.0,0.16800129]
[1733244311542,0.00231356,95399.0,95398.0,0.0003987]
[1733244312383,0.00231356,95399.0,95398.0,0.16800129]
[1733244312598,0.00231356,95399.0,95398.0,0.17000129]
[1733244313479,0.00331356,95399.0,95398.0,0.17500129]
[1733244315216,0.00331356,95399.0,95398.0,0.11211129]
[1733244315423,0.00331356,95399.0,95398.0,0.0073987]
[1733244317278,0.00331356,95399.0,95398.0,0.0053987]
[1733244317725,0.00531356,95399.0,95398.0,0.0003987]
[1733244318179,0.00431356,95399.0,95398.0,0.0003987]
[1733244318386,0.00631356,95399.0,95398.0,0.0003987]
[1733244319242,0.00431356,95399.0,95398.0,0.0003987]
[1733244319702,0.00863278,95399.0,95398.0,0.0003987]
[1733244319939,0.11334537,95399.0,95398.0,0.0003987]
[1733244320210,0.36134537,95399.0,95398.0,0.0003987]
[1733244320425,0.35702615,95399.0,95398.0,0.0003987]
[1733244320638,0.35502615,95399.0,95398.0,0.0003987]
[1733244320851,0.36002615,95399.0,95398.0,0.0003987]
[1733244321082,0.35902615,95399.0,95398.0,0.0003987]
[1733244321295,0.36802615,95399.0,95398.0,0.0003987]
[1733244321539,0.34102615,95399.0,95398.0,0.0003987]
[1733244321752,0.08631356,95399.0,95398.0,0.0003987]
[1733244321962,0.09463302,95399.0,95398.0,0.0003987]
[1733244322387,0.01731356,95399.0,95398.0,0.0003987]
[1733244322632,0.00831356,95399.0,95398.0,0.0003987]
[1733244323056,0.01731356,95399.0,95398.0,0.0003987]
[1733244323475,0.01131356,95399.0,95398.0,0.0003987]
[1733244323666,0.00931356,95399.0,95398.0,0.0003987]
[1733244324112,0.01831356,95399.0,95398.0,0.0003987]
[1733244324323,0.01431356,95399.0,95398.0,0.0003987]
[1733244324777,0.00731356,95399.0,95398.0,0.0003987]
[1733244324997,0.01631356,95399.0,95398.0,0.0003987]
[1733244325289,0.02231356,95399.0,95398.0,0.0003987]
[1733244326639,0.01331356,95399.0,95398.0,0.0003987]
[1733244326852,0.00731356,95399.0,95398.0,0.0003987]
[1733244327057,0.01031356,95399.0,95398.0,0.0003987]
[1733244328468,0.00731356,95399.0,95398.0,0.0003987]
[1733244329800,0.00731356,95399.0,95398.0,0.0013987]
[1733244332465,0.00731356,95399.0,95398.0,0.16900129]
[1733244335079,0.00731356,95399.0,95398.0,0.41600129]
[1733244335332,0.00731356,95399.0,95398.0,0.61600129]
[1733244335602,5.6e-07,95399.0,95398.0,0.80360129]
[1733244335823,5.6e-07,95399.0,95398.0,0.98622956]
[1733244336036,5.6e-07,95399.0,95398.0,1.00822956]
[1733244336477,0.00100056,95399.0,95398.0,1.01022956]
[1733244336710,5.6e-07,95399.0,95398.0,0.32492956]
[1733244337182,5.6e-07,95399.0,95398.0,0.49230129]
[1733244337417,0.00100056,95399.0,95398.0,0.17000129]
[1733244337856,0.00100056,95399.0,95398.0,0.17100129]
[1733244338114,0.00100056,95399.0,95398.0,0.17300129]
[1733244338115,0.00200056,95399.0,95398.0,0.17300129]
[1733244338341,0.00200056,95399.0,95398.0,0.17000129]
[1733244338342,0.00100056,95399.0,95398.0,0.17000129]
[1733244338563,0.00100056,95399.0,95398.0,0.37000129]
[1733244338770,0.00200056,95399.0,95398.0,0.60565194]
[1733244338993,0.0017262,95449.0,95398.0,0.60565194]
[1733244338994,0.0017262,95449.0,95428.0,0.06289]
[1733244339233,0.00190325,95443.0,95429.0,0.00185453]
[1733244339463,0.00190325,95443.0,95431.0,0.06289]
[1733244339699,0.00190325,95443.0,95433.0,0.06289]
[1733244340119,0.01090325,95443.0,95433.0,0.06289]
[1733244340359,0.01690325,95443.0,95433.0,0.06289]
[1733244340806,0.01990325,95443.0,95433.0,0.06289]
[1733244341011,0.00190325,95443.0,95433.0,0.06289]
[1733244341219,0.00790325,95443.0,95433.0,0.06289]
[1733244341425,0.00790325,95443.0,95434.0,0.06289]
[1733244341660,0.15,95442.0,95434.0,0.06289]
[1733244342577,0.15,95442.0,95435.0,0.209566]
[1733244342799,0.01690325,95443.0,95430.0,0.209576]
[1733244343011,0.15,95442.0,95426.0,0.0018545]
[1733244343263,0.209566,95436.0,95417.0,0.209604]
[1733244343470,0.209566,95436.0,95419.0,0.209601]
[1733244343703,0.15231812,95442.0,95434.0,0.001]
[1733244343704,0.209555,95440.0,95434.0,0.001]
[1733244344382,0.209569,95434.0,95419.0,0.10656724]
[1733244344657,0.209569,95434.0,95419.0,0.10471259]
[1733244344850,0.004,95436.0,95420.0,0.209599]
[1733244346200,0.004,95436.0,95420.0,0.419198]
[1733244346430,0.209566,95435.0,95420.0,0.209599]
[1733244346904,0.209566,95435.0,95434.0,0.001]
[1733244346905,0.442766,95435.0,95434.0,0.001]
[1733244347126,0.57047859,95435.0,95434.0,0.001]
[1733244347348,0.209609,95416.0,95400.0,1.581642]
[1733244347567,0.173,95434.0,95404.0,0.209634]
[1733244347797,0.173,95434.0,95401.0,0.10471259]
[1733244347798,0.023,95431.0,95401.0,0.10471259]
[1733244348019,0.173,95429.0,95398.0,0.0003987]
[1733244348238,0.209613,95414.0,95398.0,0.0003987]
[1733244348490,0.209621,95411.0,95398.0,0.0003987]
[1733244349107,0.00231897,95413.0,95398.0,0.0003987]
[1733244349340,0.0809,95412.0,95398.0,0.0033987]
[1733244349553,0.209629,95407.0,95398.0,0.0033987]
[1733244349799,0.00231897,95411.0,95398.0,0.0003987]
[1733244350059,0.209633,95405.0,95398.0,0.0003987]
[1733244350301,0.00231897,95411.0,95398.0,0.0203987]
[1733244350512,0.209621,95410.0,95398.0,0.0203987]
[1733244350726,0.209626,95408.0,95398.0,0.0203987]
[1733244350934,0.001,95407.0,95398.0,0.0203987]
[1733244351442,0.20963,95406.0,95398.0,0.0203987]
[1733244351669,0.209642,95401.0,95398.0,0.0203987]
[1733244351917,0.419284,95401.0,95398.0,0.0203987]
[1733244352839,0.419284,95401.0,95398.0,0.0212604]
[1733244353283,0.20963,95406.0,95398.0,0.0212604]
[1733244353284,0.209632,95405.0,95398.0,0.0212604]
[1733244353496,0.15,95404.0,95398.0,0.0212604]
[1733244353934,0.419274,95403.0,95398.0,0.0212604]
[1733244354149,0.15830578,95399.0,95398.0,0.0212604]
[1733244354768,0.209639,95402.0,95398.0,0.0212604]
[1733244354987,0.209629,95407.0,95398.0,0.0212604]
[1733244354988,0.15,95406.0,95398.0,0.0212604]